Cogmind - Beta 11.1 @@@ ROGUE MODE // 2022.11.01 @ 00:05:12 Player: JoshKwa Result: Destroyed by YI-UF0 with YI-UF0's Doublenader Performance ------------- Evolutions (0) 0 Regions Visited (2) 400 Robots Destroyed (1) 5 Value Destroyed (47) 47 Prototype IDs (0) 0 Alien Tech Used (0) 0 Bonus (0) 0 TOTAL SCORE: 452 Bonus ------- None Cogmind --------- Core Integrity 0/250 Matter 220/300 Energy 250/250 System Corruption 0% Temperature Cool (0) Movement Rolling (100) Location -10/Mines Parts ------- > --- POWER (1) -------- Ion Engine > --- PROPULSION (2) --- Compact Wheel > --- UTILITY (2) ------ Small Storage Unit > --- WEAPON (2) ------- (None) > --- INVENTORY (8) ---- (None) Peak State ------------ > --- POWER ------------ Ion Engine > --- PROPULSION ------- Wheel Compact Wheel > --- UTILITY ---------- Small Storage Unit Light Armor Plating > --- WEAPON ----------- EM Pulse Gun Small Laser > --- INVENTORY -------- Ion Engine [Rating: 7] Favorites ----------- Power Ion Engine Engine Ion Engine Propulsion Compact Wheel Wheel Compact Wheel Utility Small Storage Unit Storage Small Storage Unit Protection Light Armor Plating Weapon EM Pulse Gun Energy Gun EM Pulse Gun Build | -11 -10 -10 ------- Run | Scr Mat Min Slots Evolved . | . . . Power . | . . . Propulsion . | . . . Utility . | . . . Weapon . | . . . Parts Attached 10 | 6 3 1 Power 3 | 1 1 1 Engine 3 | 1 1 1 Core . | . . . Reactor . | . . . Propulsion 2 | 2 . . Treads . | . . . Leg . | . . . Wheel 2 | 2 . . Hover . | . . . Flight . | . . . Utility 2 | 1 1 . Device . | . . . Storage 1 | 1 . . Processor . | . . . Hackware . | . . . Protection 1 | . 1 . Artifact . | . . . Weapon 3 | 2 1 . Energy Gun 3 | 2 1 . Energy Cannon . | . . . Ballistic Gun . | . . . Ballistic Cannon . | . . . Launcher . | . . . Special Weapon . | . . . Impact Weapon . | . . . Slashing Weapon . | . . . Piercing Weapon . | . . . Special Melee Weapon . | . . . Unidentified Prototypes . | . . . Parts Lost 5 | . 2 3 Power 1 | . . 1 Propulsion 1 | . . 1 Utility 1 | . . 1 Weapon 2 | . 2 . Highest Loss Streak 3 | . 2 3 To Critical Strikes . | . . . Average Slot Usage (%) 69 | . 88 48 Engine 13 | . 14 12 Wheel 23 | . 28 18 Storage 14 | . 14 14 Protection 5 | . 8 3 Energy Gun 11 | . 22 . Naked Turns . | . . . Heaviest Build 17 | 13 17 13 Greatest Support 26 | 26 26 26 Greatest Overweight (x) . | . . . Average Overweight (x) . | . . . Largest Inventory Capacity 8 | 8 8 8 Average Capacity 7 | 7 8 8 Most Carried 3 | 3 2 1 Average Carried . | . 1 . Final Capacity 8 | 8 8 8 Final Carried 1 | 1 1 . Class Distribution -------------------- 100% | Mutant Dominant Class ---------------- Mutant | -10/Materials Mutant | -10/Mines Resources | -11 -10 -10 ----------- Run | Scr Mat Min Matter Collected 195 | 95 100 . Remotely . | . . . Salvage Created 60 | . 60 . Parts 3 | . 3 . Haulers Intercepted . | . . . Recyclers Shooed 1 | . 1 . Parts Field Recycled . | . . . Retrieved Matter . | . . . Parts Self-Destructed . | . . . Prevented . | . . . Kills | -11 -10 -10 ------- Run | Scr Mat Min Combat Hostiles Destroyed 1 | . 1 . Guns 1 | . 1 . Classes Destroyed 1 | . 1 . Grunt 1 | . 1 . Best Kill Streak 1 | . 1 . Combat Bots Only 1 | . 1 . Max Kills in Single Turn 1 | . 1 . Gunslinging . | . . . Exploded . | . . . Melee . | . . . Uniques/NPCs Destroyed . | . . . Combat | -11 -10 -10 -------- Run | Scr Mat Min Damage Taken 835 | . 295 540 Core 271 | . 50 221 Absorbed by Shields . | . . . Core Remaining (%) 100 | 100 . . Volleys Fired 9 | . 9 . Largest 2 | . 2 . Hottest 90 | . 90 . Shots Fired 17 | . 17 . Gun 17 | . 17 . Cannon . | . . . Launcher . | . . . Special . | . . . Kinetic . | . . . Thermal 9 | . 9 . Explosive . | . . . Electromagnetic 8 | . 8 . Robot Hit Streak 2 | . 2 . Robot Miss Streak 3 | . 3 . Penetration Max . | . . . Secondary Targets . | . . . Shots Hit Robots 7 | . 7 . Core Hits 4 | . 4 . Critical Kills . | . . . Critical Parts Destroyed . | . . . Critical Strikes 1 | . 1 . Burn 1 | . 1 . Melee Attacks . | . . . Impact . | . . . Slashing . | . . . Piercing . | . . . Sneak Attacks . | . . . Combat Hostiles . | . . . Follow-up Attacks . | . . . Damage Inflicted 115 | . 115 . Guns 115 | . 115 . Cannons . | . . . Explosions . | . . . Melee . | . . . Ramming . | . . . Kinetic . | . . . Thermal 60 | . 60 . Explosive . | . . . Electromagnetic 55 | . 55 . Impact . | . . . Slashing . | . . . Piercing . | . . . Highest Corruption . | . . . Average Corruption . | . . . Corruption Purged . | . . . Corruption Blocked . | . . . Overload Shots . | . . . Overflow Damage . | . . . Projectiles . | . . . Explosions . | . . . Melee . | . . . Knockbacks . | . . . Impact . | . . . Kinetic . | . . . Secondary . | . . . Self-Inflicted Damage . | . . . Shots . | . . . Rammed . | . . . Targets Rammed . | . . . Kicked . | . . . Crushed . | . . . Highest Temperature 323 | . 323 . Average Temperature 155 | . 155 . Received Heat Transfer 102 | . 102 . Effects 1 | . 1 . Energy Bleed 1 | . 1 . Siege Activations . | . . . Robots Corrupted . | . . . Combat Hostiles . | . . . Parts Fried . | . . . Impact Corruptions . | . . . Robots Melted . | . . . Combat Hostiles . | . . . Parts Melted . | . . . Heat Transferred 259 | . 259 . Parts Sabotaged . | . . . Parts Stolen . | . . . Parts Stripped . | . . . Power Chain Reactions . | . . . Missiles Intercepted . | . . . Alert | -11 -10 -10 ------- Run | Scr Mat Min Peak Influence 45 | . 45 9 Initial 9 | . . 9 Average 7 | . 17 1 Maximum Alert Level . | . . . Low Security (%) 100 | 100 100 100 Level 1 . | . . . Level 2 . | . . . Level 3 . | . . . Level 4 . | . . . Level 5 . | . . . High Security . | . . . Max Security . | . . . Squads Dispatched 2 | . 2 . Investigation 1 | . 1 . Extermination . | . . . Reinforcement 1 | . 1 . Assault . | . . . Garrison . | . . . Intercept . | . . . Searches Triggered . | . . . Construction Impeded . | . . . Haulers Reinforced . | . . . Active Scanning Responses . | . . . Cargo Convoy Interrupts . | . . . Stealth | -11 -10 -10 --------- Run | Scr Mat Min Distress Signals 2 | . 2 . Communications Jammed . | . . . Distress Signals . | . . . Times Spotted 11 | . 5 6 Peak Tracking Total 3 | . 3 3 Tactical Retreats 2 | . . 2 Traps | -11 -10 -10 ------- Run | Scr Mat Min Traps Triggered 1 | . 1 . Indirectly . | . . . Trap Hack Attempts . | . . . Triggered . | . . . Disarmed . | . . . Reprogrammed . | . . . Reused . | . . . Traps Extracted . | . . . Installed . | . . . Triggered . | . . . Machines | -11 -10 -10 ---------- Run | Scr Mat Min Machines Disabled . | . . . Max in Single Turn . | . . . Machines Sabotaged . | . . . Garrisons Compromised . | . . . Overloaded Fab Kills . | . . . Hacking | -11 -10 -10 --------- Run | Scr Mat Min Machines Accessed . | . . . Terminals . | . . . Fabricators . | . . . Repair Stations . | . . . Recycling Units . | . . . Scanalyzers . | . . . Garrison Access . | . . . Total Hacks . | . . . Successful . | . . . Failed . | . . . Catastrophic . | . . . Database Lockouts . | . . . Manual . | . . . Terminals . | . . . Fabricators . | . . . Repair Stations . | . . . Recycling Units . | . . . Scanalyzers . | . . . Garrison Access . | . . . Terminal Hacks . | . . . Fabricator Hacks . | . . . Repair Station Hacks . | . . . Recycling Unit Hacks . | . . . Scanalyzer . | . . . Garrison Access Hacks . | . . . Unauthorized Hacks . | . . . Terminals . | . . . Fabricators . | . . . Repair Stations . | . . . Recycling Units . | . . . Scanalyzers . | . . . Garrison Access . | . . . Data Cores Recovered . | . . . Used . | . . . Hacking Detections . | . . . Full Trace Events . | . . . Feedback Events . | . . . Feedback Blocked . | . . . Robot Schematics Acquired . | . . . Robots Built . | . . . Authchips . | . . . Time . | . . . Total Robot Build Rating . | . . . Part Schematics Acquired . | . . . Parts Built . | . . . Authchips . | . . . Time . | . . . Total Part Build Rating . | . . . Parts Repaired . | . . . Time . | . . . Parts Recycled . | . . . Recycled Matter . | . . . Retrieved Matter . | . . . Retrieved Components . | . . . Parts Scanalyzed . | . . . Part Schematics Acquired . | . . . Parts Damaged . | . . . Bothacking | -11 -10 -10 ------------ Run | Scr Mat Min Used RIF Installer . | . . . Robots Hacked . | . . . Non-combat . | . . . Combat . | . . . Robot Hacks Applied . | . . . Relay Couplers Released . | . . . Fabnet Peak Effective % . | . . . Robots Rewired . | . . . Allies Hacked . | . . . Hacks Repelled . | . . . Allies | -11 -10 -10 -------- Run | Scr Mat Min Total Allies . | . . . Largest Group . | . . . Highest-Rated Group . | . . . Highest-Rated Ally . | . . . Total Orders . | . . . Ally Attacks . | . . . Total Damage . | . . . Kills . | . . . Allies Corrupted . | . . . Allies Melted . | . . . Intel | -11 -10 -10 ------- Run | Scr Mat Min Robot Analysis Total . | . . . Derelict Logs Recovered . | . . . Drone Launches . | . . . Drone Recoveries . | . . . Exploration | -11 -10 -10 ------------- Run | Scr Mat Min Turns Passed 246 | 56 98 92 Spaces Moved 214 | 52 70 92 Core 9 | 9 . . Treads . | . . . Legs . | . . . Wheels 205 | 43 70 92 Hover . | . . . Flight . | . . . Fastest Speed 50 | 50 90 90 Average Speed 91 | 83 90 97 Slowest Speed 100 | 90 90 100 Overloaded Moves . | . . . Propulsion Burnouts . | . . . Robots Hopped . | . . . Cave-ins Triggered . | . . . Exploration Rate (%) 17 | 3 22 26 Regions Visited 2 Branch Regions 1 Pre-discovered Areas . | . . . Known Exits Taken . | . . . Unknown Exits Taken 2 | 1 1 . Scrap Searched . | . . . Spaces Dug . | . . . Terrain Destroyed . | . . . Melee . | . . . Projectile . | . . . AOE . | . . . Terrain Rammed . | . . . Walls Destroyed . | . . . Machines Disabled . | . . . Actions | -11 -10 -10 --------- Run | Scr Mat Min Total 247 | 64 88 95 Wait . | . . . Move 212 | 51 69 92 Hop . | . . . Pick Up 12 | 7 4 1 Fast Attach . | . . . Attach 8 | 6 1 1 Detach . | . . . Swap 2 | . 2 . Drop 4 | . 3 1 Fire 9 | . 9 . Melee . | . . . Ram . | . . . Kick . | . . . Crush . | . . . Escape Stasis . | . . . Rewire . | . . . Trap . | . . . Miscellaneous . | . . . Route ------- -11/Scrapyard -10/Materials -10/Mines History --------- Turn | Location | Event 36 | -11/Scrapyard | Discovered new exit (range 15) 57 | -11/Scrapyard | Entered Materials 112 | -10/Materials | Discovered new exit (range 13) 155 | -10/Materials | Entered Mines 179 | -10/Mines | Core integrity fell below 50% 211 | -10/Mines | Lost 3 parts (1p1n1u) 246 | -10/Mines | Core integrity fell below 20% 247 | -10/Mines | Destroyed by YI-UF0 with YI-UF0's Doublenader Last Messages --------------- 00166_ S-10 Pest destroyed. 00170_ YI-UF0: "Whaaaaaaaa!" 00170_ YI-UF0: "WHAAM!" 00172_ Lgt. Armor Plating destroyed. 00174_ The unstable cave ceiling collapses. 00178_ Ion Engine destroyed. 00180_ YI-UF0 mumbles something. 00180_ Wheel destroyed. 00184_ The unstable cave ceiling collapses. 00187_ Acquired Ion Engine. 00191_ The unstable cave ceiling collapses. 00213_ YI-UF0: "WHAAM!" 00213_ K-01 Serf destroyed. 00213_ YI-UF0: "BOOSH!" 00213_ K-01 Serf destroyed. 00216_ The unstable cave ceiling collapses. 00236_ R-06 Scavenger destroyed. 00244_ YI-UF0 mumbles something. 00246_ U-05 Engineer lays Concrete. 00247_ The unstable cave ceiling collapses. Map ----- +----------------------------------------------------+ | ?????????????????????????????????????????????? | | ?????????????????????????????????????????????? | | ?????????????????????????????????????????????? | | ?????????????????????????????????????????????? | | ?????????????????????????????????????????????? | | ?????????????????????????????????????????????? | | ?????????????????????????????????????????????? | | ?????????????????????????????????????????????? | | ?????????????????????????????????????????????? | | ?????????????????????????????????????????????? | | ?????????????????????????????????????????????? | | ?????????????????????????????????????????????? | | ?????????????????????????????????????????????? | | ?????????????????????????????????????????????? | | ?????????????????????????????????????????????? | | ?????????????????????????????????????????????? | | ?????????????????????##??????????????????????? | | ????????????????????# ??????????????????????? | | ????????????????????# ??????????????????????? | | ????????????????????# #??????????????????????? | | ????????????????????# #??????????????????????? | | ??????????????????###u##?????????????????????? | | ????????????????### ##????????????????????? | | ????????????????# ##???????????????????? | | ???????????#????# ########????????????? | | ???????????# ### @ #????????????? | | ????###????# #????????????? | | ???## #???#### ###### #????????????? | | ???# #?????## ##??# #????????????? | | ????# #####?### ### ###??????????? | | ?????# ##??# #??????????? | | ?????## #### % g #??????????? | | ??????#### #??????????? | | ?????????## # ## %! #??????????? | | ??????????# ### |= ###??????????? | | ?????????## ## ##????????????? | | ?????????# ########## ##?????????????? | | ?????????# ##### #??????????????? | | ?????????## ### # ##?????????????? | | ?????????## # ##????????????? | | ???????### ## #????????????? | | ??????## #????????????? | | ??????# #????????????? | | ??????# ! #????????????? | | ?????## # ## = ### #????????????? | | ???### # ??# #???????????? | | ??## ### ### ??? #??????????? | | ??# ####?##### #???? #??????????? | | ??# ##????????######????# #??????????? | | ??# #???????????????????? ##??????????? | +----------------------------------------------------+ Best States ------------- Heat Dissipation 25 Energy Generation 10 Energy Capacity 250 Matter Stores 225 Matter Capacity 300 Sight Range 16 Terrain Scan Density 10 Armor Coverage 150 Evasion (%) 42 Item Schematics ----------------- None Robot Schematics ------------------ None Fabricated ------------ Nothing Alien Tech Used ----------------- None Achievements -------------- None Challenges ------------ None Game ------ Seed NeutrinoEnergyStorage Manual? 0 Play Time 00:04:29 Cumulative 10.0 hours Start 2022.11.01 @ 00:01:20 End 2022.11.01 @ 00:05:12 Sessions 1 Manual Loads 0 Difficulty Rogue Special Mode None Game No. 32 Rogue 32 Adventurer 0 Explorer 0 Win Type - Total 0 Types 0/0/0/0/0/0/0/0/0 Lore% 13 Gallery% 18 Achievement% 16 Wizard Run 0 Options --------- ASCII 0 Keyboard 0 Movement Numpad Keybinds 0 Fullscreen 1 Font 18/SmallcapsGlow Map View 76x50 Tactical HUD 1 Map Filters NONE Filters NONE Steam 1 RUN: 6c99b2ce-82aa-4f8c-b861-af13239af252